{"text_format":"2","workbook":"xlsx","n_sheets":1,"sheets":["Specifikációs táblázat"],"not_rendered":{"charts":0,"images":0,"macros":0,"external_links":0,"defined_names":0,"comments":0,"pivot_tables":0},"unopened":[],"bounds":{"document_bytes":16777216,"sheet_cells":100000,"run_cost":"one","rows_first":2000,"rows_last":500,"rows_between":2000,"halvings":0,"cell_chars":16384,"cell_head_chars":4096},"cells_cut":0,"cells_raw":0,"read":"whole","date_system":"1900"}

{"sheet":"Specifikációs táblázat","index":0,"n_rows":87,"n_cols":8,"rows_kept":87,"cut":false,"hidden":false,"merged":[[70,1,70,7],[86,0,88,7],[40,1,40,7],[46,1,46,7],[52,1,52,7],[58,1,58,7],[64,1,64,7],[80,0,81,7],[82,0,83,7],[75,0,77,7],[78,0,79,7],[84,0,84,7],[85,0,85,7],[3,1,3,7],[9,1,9,7],[15,1,15,7],[28,1,28,7],[34,1,34,7],[21,1,21,7]]}
["Sorszám","Megnevezés* ","Kiszerelés kg/zsák","Tervezett igényelt mennyiség(kg)/szállítási súlyszám","Nettó egységár (Kg;alkalom)**","Bruttó egységár (Kg;alkalom)**","Nettó ár összesen***","Bruttó ár összesen***"]
[null,"ALOM"]
["1.","faforgács, borovi fenyő (FALOM) ","10 kg/zsák",8000,0,{"$f":"E3*1.27","v":0},{"$f":"E3*D3","v":0},{"$f":"G3*1.27","v":0}]
[null,"Specifikáció:  10 kg csomagolás varott PP zsák, rostált, szemcseméret: 10-20mm"]
[null,"0-1 tonna össztömegű gépjárművel történő leszállítás",null,2,0,{"$f":"E5*1.27","v":0},{"$f":"E5*D5","v":0},{"$f":"G5*1.27","v":0}]
[null,"1- 3,5 tonna össztömegű gépjárművel történő leszállítás",null,2,0,{"$f":"E6*1.27","v":0},{"$f":"E6*D6","v":0},{"$f":"G6*1.27","v":0}]
[{"$nulls":5},"Mindösszesen:",{"$f":"G3+G5+G6","v":0},{"$f":"H3+H5+H6","v":0}]
[]
["2.","kukoricacsutka alom (GM 12)","20kg/zsák",6000,0,{"$f":"E9*1.27","v":0},{"$f":"E9*D9","v":0},{"$f":"G9*1.27","v":0}]
[null,"Specifikáció: 1000<>2000µ szemcseméret, max 12% nedvességtartalom, autoklávozható 20kg/zsák, laminált PP zsákban, sűrűség: 530 kg/m3 (+-)10%"]
[null,"0-1 tonna össztömegű gépjárművel történő leszállítás",null,1.5,0,{"$f":"E11*1.27","v":0},{"$f":"E11*D11","v":0},{"$f":"G11*1.27","v":0}]
[null,"1- 3,5 tonna össztömegű gépjárművel történő leszállítás",null,1.5,0,{"$f":"E12*1.27","v":0},{"$f":"E12*D12","v":0},{"$f":"G12*1.27","v":0}]
[{"$nulls":5},"Mindösszesen : ",{"$f":"G9+G11+G12","v":0},{"$f":"H9+H11+H12","v":0}]
[]
["3.","fenyő alomanyag (SAFE 3-4S)","12,5kg/zsák",4000,0,{"$f":"E15*1.27","v":0},{"$f":"E15*D15","v":0},{"$f":"G15*1.27","v":0}]
[null,"Specifikáció: steril autoklávozható fenyő alomanyag 2-4mm az jó, 3 év lejárati idő, minőségi papírral, -\thamu: ~0,5% ;\tsűrűség: ~85g/l -\tpH érték: 4,5-6,5 -\t100%-ban természetes termék"]
[null,"0-1 tonna össztömegű gépjárművel történő leszállítás",null,1,0,{"$f":"E17*1.27","v":0},{"$f":"E17*D17","v":0},{"$f":"G17*1.27","v":0}]
[null,"1- 3,5 tonna össztömegű gépjárművel történő leszállítás",null,1,0,{"$f":"E18*1.27","v":0},{"$f":"E18*D18","v":0},{"$f":"G18*1.27","v":0}]
[{"$nulls":5},"Mindösszesen:",{"$f":"G15+G17+G18","v":0},{"$f":"H15+H17+H18","v":0}]
[]
["4.","nyárfa alom  (Select Fine)","10 kg/zsák ",2000,0,{"$f":"E21*1.27","v":0},{"$f":"E21*D21","v":0},{"$f":"G21*1.27","v":0}]
[null,"Specifikáció: 2,5-3,5 mm; autoklávozható,3 év lejárati idő; minőségi papírral, hamu: ~0,5%, sűrűség: 195 g/l, pH érték: 4,5-6,5 és 100%-ban természetes termék"]
[null,"0-1 tonna össztömegű gépjárművel történő leszállítás",null,0.5,0,{"$f":"E23*1.27","v":0},{"$f":"E23*D23","v":0},{"$f":"G23*1.27","v":0}]
[null,"1- 3,5 tonna össztömegű gépjárművel történő leszállítás",null,0.5,0,{"$f":"E24*1.27","v":0},{"$f":"E24*D24","v":0},{"$f":"G24*1.27","v":0}]
[{"$nulls":5},"Mindösszesen:",{"$f":"G21+G23+G24","v":0},{"$f":"H21+H23+H24","v":0}]
[]
[null,"TAKARMÁNY/TÁP"]
["5.","Egységes egér és patkány táp (Farmer-mix)","20kg/zsák vagy 25 kg/zsák ",4000,0,{"$f":"E28*1.27","v":0},{"$f":"E28*D28","v":0},{"$f":"G28*1.27","v":0}]
[null,"Specifikáció:  teljes értékű takarmány, szavatosság min. 3 hónap; Összetevők: Bl.t.liszt, kukorica,szója (géntechnológiával módosított), rozs, e.napraforgó, glutén, tejpotló, zeolit, t.mész, lignobond FPM, premix, MCP,só"]
[null,"0-1 tonna össztömegű gépjárművel történő leszállítás",null,1,0,{"$f":"E30*1.27","v":0},{"$f":"E30","v":0},{"$f":"G30*1.27","v":0}]
[null,"1- 3,5 tonna össztömegű gépjárművel történő leszállítás",null,1,0,{"$f":"E31*1.27","v":0},{"$f":"E31","v":0},{"$f":"G31*1.27","v":0}]
[{"$nulls":5},"Mindösszesen: ",{"$f":"G28+G30+G31","v":0},{"$f":"H28+H30+H31","v":0}]
[]
["6.","Autoklávozható általános rágcsálótáp (SAFE D40) ","10kg/zsák",4000,0,{"$f":"E34*1.27","v":0},{"$f":"E34*D34","v":0},{"$f":"G34*1.27","v":0}]
[null,"Specifikáció: megnevezés: autoklávozható fenntartó rágcsálótáp, lejárati idő 1 év, átmérő: 16mm, 10kg-os steril csomagolás, állati fehérjéktől mentes, NFE 61% nyersfehérje: 15,2% zsír: 3,2% nyersrost 4,1% hamu 4,4%"]
[null,"0-1 tonna össztömegű gépjárművel történő leszállítás",null,1,0,{"$f":"E36*1.27","v":0},{"$f":"E36","v":0},{"$f":"G36*1.27","v":0}]
[null,"1- 3,5 tonna össztömegű gépjárművel történő leszállítás",null,1,0,{"$f":"E37*1.27","v":0},{"$f":"E37","v":0},{"$f":"G37*1.27","v":0}]
[{"$nulls":5},"Mindösszesen: ",{"$f":"G34+G36+G37","v":0},{"$f":"H34+H36+H37","v":0}]
[]
["7.","Rágcsálótáp, univerzális(tenyész-fenntartó) (SAFE 132)","10kg/zsák",8000,0,{"$f":"E40*1.27","v":0},{"$f":"E40*D40","v":0},{"$f":"G40*1.27","v":0}]
[null,"Specifikáció: 10kg-os papírzsák csomagolás, 1 év lejárati idő, 12mm átmérő, minőségi papír, állati fehérjéktől mentes, NFE 55,4%nyersfehérje 18,6% zsír 4,1% hamu 5,5% nyersrost 3,9%"]
[null,"0-1 tonna össztömegű gépjárművel történő leszállítás",null,2,0,{"$f":"E42*1.27","v":0},{"$f":"E42*D42","v":0},{"$f":"G42*1.27","v":0}]
[null,"1- 3,5 tonna össztömegű gépjárművel történő leszállítás",null,2,0,{"$f":"E43*1.27","v":0},{"$f":"E43*D43","v":0},{"$f":"G43*1.27","v":0}]
[{"$nulls":5},"Mindösszesen:",{"$f":"G40+G42+G43","v":0},{"$f":"H40+H42+H43","v":0}]
[]
["8.","Nyúltáp, univerzális(tenyész-fenntartó) ","10kg/zsák",1000,0,{"$f":"E46*1.27","v":0},{"$f":"E46*D46","v":0},{"$f":"G46*1.27","v":0}]
[null,"Specifikáció: 1 év lejárati idő, 3,3 mm átmérő, minőségi papírral, 10kg, steril, NFE 47,9% nyersfehérje 14,5% zsír 2,7% hamu 8,3% nyersrost 16,6%"]
[null,"0-1 tonna össztömegű gépjárművel történő leszállítás",null,0.25,0,{"$f":"E48*1.27","v":0},{"$f":"E48*D48","v":0},{"$f":"G48*1.27","v":0}]
[null,"1- 3,5 tonna össztömegű gépjárművel történő leszállítás",null,0.25,0,{"$f":"E49*1.27","v":0},{"$f":"E49*D49","v":0},{"$f":"G49*1.27","v":0}]
[{"$nulls":5},"Mindösszesen:",{"$f":"G46+G48+G49","v":0},{"$f":"H46+H48+H49","v":0}]
[]
["9.","Kutyatáp (Vip Dog Active6 30/14 )(csak ez a típus! Helyettesítő terméket nem fogadunk el) ","20kg/zsák",4000,0,{"$f":"E52*1.27","v":0},{"$f":"E52*D52","v":0},{"$f":"G52*1.27","v":0}]
[null,"Specifikáció: Beltartalmi adatok: nyers fehérje: 30%; nyers zsír: 14%;   nyers rost 2,5%; nyers hamu: 11%; nedvesség:10%; kalcium: 2,7%; foszfor: 1,6%;\nVitaminok: A vitamin 12.500NE/kg; D3 vitamin 1.200NE/kg; E vitamin 80mg/g\nÖsszetétel: gabonafélék; hús és állati melléktermékek; hal és halszármazékok; olajok és zsírok; növényi eredetű melléktermékek; ásványi anyagok\n\n"]
[null,"0-1 tonna össztömegű gépjárművel történő leszállítás",null,1,0,{"$f":"E54*1.27","v":0},{"$f":"E54*D54","v":0},{"$f":"E54*1.27","v":0}]
[null,"1- 3,5 tonna össztömegű gépjárművel történő leszállítás",null,1,0,{"$f":"E55*1.27","v":0},{"$f":"E55*D55","v":0},{"$f":"E55*1.27","v":0}]
[{"$nulls":5},"Mindösszesen:",{"$f":"G52+G54+G55","v":0},{"$f":"H52+H54+H55","v":0}]
[]
["10.","Altromin 1324 (csak ez a típus! Helyettesítő terméket nem fogadunk el) ","12,5 kg/zsák",1000,0,{"$f":"E58*1.27","v":0},{"$f":"E58*D58","v":0},{"$f":"G58*1.27","v":0}]
[null,"Specifikáció: fenntartó, rágcsálótáp"]
[null,"0-1 tonna össztömegű gépjárművel történő leszállítás",null,0.25,0,{"$f":"E60*1.27","v":0},{"$f":"E60*D60","v":0},{"$f":"G60*1.27","v":0}]
[null,"1- 3,5 tonna össztömegű gépjárművel történő leszállítás",null,0.25,0,{"$f":"E61*1.27","v":0},{"$f":"E61*D61","v":0},{"$f":"G61*1.27","v":0}]
[{"$nulls":5},"Mindösszesen:",{"$f":"G58+G60+G61","v":0},{"$f":"H58+H60+H61","v":0}]
[]
["11.","Nyúltáp, fenntartó ","20 kg/zsák",1000,0,{"$f":"E64*1.27","v":0},{"$f":"E64*D64","v":0},{"$f":"G64*1.27","v":0}]
[null,"Specifikáció: min 3 hónap szavatosság, Összetevők:kukorica, búza, árpa, napraforgó dara, szója, búzakorpa, lucerna,széna, mész, premix, 20kg-os PP zsák csomagolás"]
[null,"0-1 tonna össztömegű gépjárművel történő leszállítás",null,0.25,0,{"$f":"E66*1.27","v":0},{"$f":"E66","v":0},{"$f":"G66*1.27","v":0}]
[null,"1- 3,5 tonna össztömegű gépjárművel történő leszállítás",null,0.25,0,{"$f":"E67*1.27","v":0},{"$f":"E67","v":0},{"$f":"G67*1.27","v":0}]
[{"$nulls":5},"Mindösszesen:",{"$f":"G64+G66+G67","v":0},{"$f":"H64+H66+H67","v":0}]
[]
["12.","Tengerimalac táp, C-vitaminnal dúsított ","20kg/zsák",1000,0,{"$f":"E58*1.27","v":0},{"$f":"E70*D70","v":0},{"$f":"G70*1.27","v":0}]
[null,"Specifikáció: min 3 hónap szavatosság ,Összetevők: kukorica, búza, árpa,napraf.dara,szójadara, korpa, lucerna, széna, mész, C-vit., premix"]
[null,"0-1 tonna össztömegű gépjárművel történő leszállítás",null,0.25,0,{"$f":"E72*1.27","v":0},{"$f":"E72*D72","v":0},{"$f":"G72*1.27","v":0}]
[null,"1- 3,5 tonna össztömegű gépjárművel történő leszállítás",null,0.25,0,{"$f":"E73*1.27","v":0},{"$f":"E73*D73","v":0},{"$f":"G73*1.27","v":0}]
[{"$nulls":5},"Mindösszesen: ",{"$f":"G70+G72+G73","v":0},{"$f":"H70+H72+H73","v":0}]
[]
["*  Kérjük amennyiben valamelyik terméknél felmerül  szemcseméretből adódó (Midi, Mini, Maxi) kiszerelés- és árbeli különbség, úgy adott sorra a termékek átlagárát szíveskedjenek feltüntetni, az ajánlatok érdemi összehasonlíthatósága végett. Részletes árlistát pedig az ajánlatukban szíveskedjenek megjelölni.  Bírálati szempont az egyes soroknak megfelelő egységár tekintetében legalacsonyabb összegű ellenszolgáltatás.  FONTOS! A megadott árnak a  csomagolási  költséget tartalmazni kell, de az autoklávozás díját nem. "]
[]
[]
["** Az ajánlati egységárat alom és táp esetében 1 kg-ra vonatkoztatva, a szállítások esetében 1 alkalomra vonatkoztatva kérjük meghatározni. A megadott nettó egység ár/ árak fogják képezni a szerződés szerint meghatározott árat. Megadott árat a keretszerződés teljes időtartamára (tervezetten 1év- max 1,5 év) köteles tartani az ajánlatadó. "]
[]
["*** Az ajánlati árak a megadott igényelt mennyiség (kg) és az ajánlat szerinti nettó egységár szerinti kg-os ár szorzata. Ez az ár tervezett keretösszeg, de nem fedi a ténylegesen lehívásra kerülő mennyiséget."]
[]
["**** SZÁLLÍTÁSI KÖLTSÉG  azon Megrendelők/Felhasználó helyek közt kerül szétosztásra, akik egy adott időintervallumon (14 napon ) belül rendelnek és egyidejűleg kerülnek az igényelt  termékeik leszállításra.  A szállítások tervezetten havonta 2-szer fognak történni, de nyilván ez előre nem ismert. Így az értékelés során ezzel lesz kalkulálva az egész éves szállítási költség.  Kérjük a kitöltés esetében mindkét sort szíveskedjenek kitölteni, amennyiben nem kerül  szállítási költség felszámításra úgy kérjük 0-val töltsék ki a mezőket. "]
[]
["Ajánlatkérő a soronkénti megadott bruttó összegek súlyszámok alapján számított súlyozott mindösszesen összegét fogja értékelni a bírálat során."]
[]
["AHOL NEM KERÜLT JELZÉSRE A TERMÉK MELLETT, OTT ELFOGADUNK EGYENÉRTÉKŰ VAGY JOBB HELYETTESÍTŐ TERMÉKET, a megadott specifikációs elvárásoknak megfelelően. "]